Cogmind - Beta 14 @@@ ROGUE MODE // 2024.12.07 @ 20:05:30 Player: willowlium Result: Destroyed by H-66 Slayer with Gauss Rifle Performance ------------- Evolutions (4) 2000 Regions Visited (6) 1200 Robots Destroyed (102) 510 Value Destroyed (3381) 3381 Prototype IDs (3) 60 Alien Tech Used (0) 0 Bonus (662) 662 TOTAL SCORE: 7813 Bonus ------- High Alert Combat Kills 162 Entered DSFs 500 Cogmind --------- Core Integrity 0/850 Matter 285/300 Energy 6/150 System Corruption 14% Temperature Cool (0) Movement Walking (190) Ox1 Location -6/Factory Parts ------- > --- POWER (2) -------- Micro Nuclear Core > --- PROPULSION (3) --- Flexi-carbon Leg > --- UTILITY (6) ------ Improved Shield Generator Improved Shield Generator > --- WEAPON (4) ------- Heavy Plasma Cannon > --- INVENTORY (5) ---- Light Nuclear Core Advanced Thermal Generator Advanced Heat Sink Advanced Melee Analysis Suite Graphene Brace Peak State ------------ > --- POWER ------------ Micro Nuclear Core Fission Core > --- PROPULSION ------- Carbon-fiber Leg Carbon-fiber Leg > --- UTILITY ---------- Advanced Heat Sink Improved Targeting Computer Core Analyzer Armor Integrity Analyzer Improved Particle Charger Improved Light Armor Plating > --- WEAPON ----------- Plasma Rifle Phase Cannon Phase Cannon Heavy Plasma Cannon > --- INVENTORY -------- Light Nuclear Core Advanced Thermal Generator Advanced Heat Sink Advanced Melee Analysis Suite Graphene Brace [Rating: 60] Favorites ----------- Power Light Ion Engine Engine Light Ion Engine Power Core Fission Core Propulsion Hover Unit Treads Improved Treads Leg Improved Titanium Leg Hover Unit Hover Unit Utility Improved Targeting Computer Device Advanced Thermal Generator Storage Small Storage Unit Processor Improved Targeting Computer Hackware Hacking Suite Protection Improved Light Armor Plating Weapon Phase Cannon Energy Gun Shock Rifle Energy Cannon Phase Cannon Ballistic Gun Assault Rifle Ballistic Cannon Magnetic Acceleration Cannon Launcher Grenade Launcher Impact Weapon Powered Hammer Slashing Weapon Scythe Build | -11 -10 -9 -8 -7 -7 -6 ------- Run | Yrd Mat Mat Mat Fac DSF Fac Slots Evolved 8 | . . 2 2 2 . 2 Power 1 | . . . . 1 . . Propulsion 1 | . . 1 . . . . Utility 4 | . . 1 2 . . 1 Weapon 2 | . . . . 1 . 1 Parts Attached 122 | 6 11 27 21 2 19 36 Power 15 | 1 1 7 . 1 . 5 Engine 11 | 1 1 7 . . . 2 Core 4 | . . . . 1 . 3 Reactor . | . . . . . . . Propulsion 35 | 2 4 9 9 . 7 4 Treads 3 | . . . 3 . . . Leg 19 | 2 . . 6 . 7 4 Wheel . | . . . . . . . Hover 13 | . 4 9 . . . . Flight . | . . . . . . . Utility 31 | 1 1 4 4 1 4 16 Device 20 | . 1 2 2 1 1 13 Storage 2 | 1 . . 1 . . . Processor 3 | . . 1 . . 2 . Hackware 1 | . . 1 . . . . Protection 5 | . . . 1 . 1 3 Artifact . | . . . . . . . Weapon 41 | 2 5 7 8 . 8 11 Energy Gun 11 | 1 2 3 . . 3 2 Energy Cannon 7 | . . 1 1 . . 5 Ballistic Gun 7 | 1 . 1 3 . . 2 Ballistic Cannon 4 | . . . 1 . 2 1 Launcher 8 | . 3 2 2 . 1 . Special Weapon . | . . . . . . . Impact Weapon 1 | . . . . . . 1 Slashing Weapon 3 | . . . 1 . 2 . Piercing Weapon . | . . . . . . . Special Melee Weapon . | . . . . . . . Unidentified Prototypes 1 | . . 1 . . . . Parts Lost 58 | . 1 7 8 . 14 28 Power 5 | . . . . . 2 3 Propulsion 21 | . 1 6 4 . 4 6 Utility 17 | . . 1 2 . 3 11 Weapon 15 | . . . 2 . 5 8 Highest Loss Streak 13 | . 1 3 6 . 13 9 To Critical Strikes . | . . . . . . . Average Slot Usage (%) 82 | . 93 88 77 90 70 80 Engine 5 | . 14 11 9 7 3 . Core 2 | . . . . 7 2 4 Leg 10 | . 3 . 9 23 17 15 Hover 7 | . 23 27 5 . . . Device 9 | . 9 11 1 13 8 10 Storage 6 | . 14 11 9 7 7 2 Processor 12 | . . 3 9 7 15 19 Hackware 1 | . . 1 9 7 . . Protection 2 | . . . 3 . . 3 Energy Gun 3 | . 5 10 . . 1 2 Energy Cannon 7 | . . 1 6 7 . 12 Ballistic Gun 5 | . 14 6 2 7 2 3 Launcher 2 | . 8 3 3 . . . Impact Weapon 1 | . . . . . . 2 Peak Build Rating 60 | 6 7 17 25 26 37 60 Average Rating 32 | 4 6 10 18 25 28 50 On Entrance 16 | . 6 7 17 22 26 35 Naked Turns . | . . . . . . . Heaviest Build 57 | 12 14 20 24 29 33 57 Greatest Support 69 | 20 20 18 69 30 60 60 Greatest Overweight (x) 15 | . 2 2 5 . 7 15 Average Overweight (x) . | . . . . . . . Largest Inventory Capacity 8 | 8 8 8 8 8 8 8 Average Capacity 6 | 6 8 8 8 8 8 6 Most Carried 8 | 2 8 8 8 7 8 8 Average Carried 5 | . 6 7 7 6 6 5 Final Capacity 8 | 8 8 8 8 8 8 5 Final Carried 8 | 2 7 8 8 6 8 5 Class Distribution -------------------- 39% | Mutant 32% | Scavenger-Gunner 19% | Scavenger-Mutant 8% | Gunner Dominant Class ---------------- Mutant | -10/Materials Mutant | -9/Materials Mutant | -8/Materials Scavenger-Mutant | -7/Factory Mutant | -7/DSF Scavenger-Gunner | -6/Factory Resources | -11 -10 -9 -8 -7 -7 -6 ----------- Run | Yrd Mat Mat Mat Fac DSF Fac Matter Collected 2058 | 250 305 407 378 . 122 596 Remotely . | . . . . . . . Salvage Created 3482 | . 555 754 646 . 230 1297 Parts 230 | . 45 59 36 . 15 75 Haulers Intercepted 2 | . 2 . . . . . Recyclers Shooed 1 | . 1 . . . . . Parts Field Recycled . | . . . . . . . Retrieved Matter . | . . . . . . . Parts Self-Destructed . | . . . . . . . Prevented . | . . . . . . . Kills | -11 -10 -9 -8 -7 -7 -6 ------- Run | Yrd Mat Mat Mat Fac DSF Fac Combat Hostiles Destroyed 72 | . 11 16 16 . 4 25 Melee 7 | . . . 1 . 3 3 Guns 24 | . 4 11 3 . 1 5 Cannons 15 | . . . 4 . . 11 AOE 22 | . 7 5 8 . . 2 Classes Destroyed 14 | . 8 2 1 . 1 2 Worker 5 | . 2 1 . . . 2 Builder 5 | . 3 . 1 . . 1 Tunneler 1 | . . . . . . 1 Hauler 2 | . 2 . . . . . Recycler 5 | . 3 1 1 . . . Operator 2 | . 1 1 . . . . Watcher 10 | . 3 4 . . . 3 Swarmer 20 | . 6 3 4 . . 7 Grunt 28 | . 5 6 8 . . 9 Duelist 2 | . . 1 1 . . . Sentry 11 | . . 6 2 . . 3 Specialist 3 | . . . . . 3 . Hunter 6 | . . . 1 . 1 4 Programmer 2 | . . . . . . 2 Best Kill Streak 10 | . 10 4 4 . 2 4 Combat Bots Only 4 | . 3 4 4 . 2 4 Max Kills in Single Turn 4 | . 4 2 4 . 1 3 Gunslinging 1 | . . 1 . . . . Exploded 4 | . 1 1 4 . . 1 Melee 1 | . . . 1 . 1 1 Uniques/NPCs Destroyed . | . . . . . . . Combat | -11 -10 -9 -8 -7 -7 -6 -------- Run | Yrd Mat Mat Mat Fac DSF Fac Hostile Shots Fired 681 | . 32 60 94 . 102 393 Missed 186 | . 10 19 19 . 23 115 Damage Taken 7563 | . 229 575 1128 . 1722 3909 Core 1804 | . 60 153 182 . 552 857 Absorbed by Shields 51 | . . . . . . 51 Core Remaining (%) 64 | 100 76 61 66 . 21 . Volleys Fired 177 | . 28 49 45 . 8 47 Largest 4 | . 2 2 2 . 3 4 Hottest 335 | . 70 112 90 . 218 335 Shots Fired 348 | . 43 90 72 . 16 127 Gun 171 | . 33 76 24 . 9 29 Cannon 153 | . . 3 45 . 7 98 Launcher 24 | . 10 11 3 . . . Special . | . . . . . . . Kinetic 131 | . 25 29 37 . 7 33 Thermal 172 | . 8 47 20 . 9 88 Explosive 24 | . 10 11 3 . . . Electromagnetic 21 | . . 3 12 . . 6 Robot Hit Streak 9 | . 4 9 9 . 3 8 Robot Miss Streak 6 | . 4 2 2 . 4 6 Penetration Max . | . . . . . . . Secondary Targets 1 | . . 1 . . . . Max Gunslinging Chain 1 | . . 1 . . . . Shots Hit Robots 229 | . 21 54 54 . 13 87 Core Hits 157 | . 35 41 31 . 5 45 Critical Kills 1 | . . . . . . 1 Critical Parts Destroyed 3 | . . 1 . . . 2 Critical Strikes 6 | . . 3 . . . 3 Burn 2 | . . 2 . . . . Meltdown 1 | . . . . . . 1 Destroy 1 | . . 1 . . . . Smash 2 | . . . . . . 2 Melee Attacks 47 | . . . 1 . 7 39 Impact 39 | . . . . . . 39 Slashing 8 | . . . 1 . 7 . Piercing . | . . . . . . . Sneak Attacks . | . . . . . . . Combat Hostiles . | . . . . . . . Follow-up Attacks . | . . . . . . . Damage Inflicted 7442 | . 1269 1242 1450 . 360 3121 Guns 1614 | . 201 687 290 . 72 364 Cannons 2491 | . . 38 744 . 135 1574 Explosions 2271 | . 1068 517 384 . . 302 Melee 1066 | . . . 32 . 153 881 Ramming . | . . . . . . . Kinetic 1731 | . 162 313 559 . 135 562 Thermal 2513 | . 39 424 383 . 72 1595 Explosive 1677 | . 866 467 344 . . . Electromagnetic 455 | . 202 38 132 . . 83 Impact 881 | . . . . . . 881 Slashing 185 | . . . 32 . 153 . Piercing . | . . . . . . . Highest Corruption 14 | . 2 . . . . 14 Average Corruption 1 | . 2 . . . . 1 Corruption Purged . | . . . . . . . Corruption Blocked . | . . . . . . . Effects 21 | . 5 . . . . 16 Message Errors 3 | . . . . . . 3 Matter Fused 5 | . 2 . . . . 3 Heat Flow Errors 1 | . . . . . . 1 Energy Discharges 4 | . 1 . . . . 3 Data Loss (minor) 4 | . . . . . . 4 Data Loss (major) 2 | . 2 . . . . . Alerts 1 | . . . . . . 1 Misdirections 1 | . . . . . . 1 Overload Shots . | . . . . . . . Overflow Damage 384 | . 45 23 . . . 316 Projectiles 39 | . . . . . . 39 Explosions 206 | . 45 23 . . . 138 Melee 139 | . . . . . . 139 Knockbacks 10 | . . . 5 . 1 4 Impact 3 | . . . . . . 3 Kinetic 6 | . . . 4 . 1 1 Secondary 1 | . . . 1 . . . Self-Inflicted Damage 206 | . . 48 17 . . 141 Shots 6 | . . 2 1 . . 3 Rammed . | . . . . . . . Targets Rammed . | . . . . . . . Kicked . | . . . . . . . Crushed . | . . . . . . . Highest Temperature 506 | . 30 149 236 . 92 506 Average Temperature 92 | . 12 47 69 . 60 154 Received Heat Transfer 1968 | . 90 225 513 . 207 933 Effects 10 | . . . . . . 10 Shutdowns 2 | . . . . . . 2 Interference 6 | . . . . . . 6 Matter Decay 1 | . . . . . . 1 Damage (minor) 1 | . . . . . . 1 Siege Activations . | . . . . . . . Robots Corrupted 3 | . . . . . . 3 Combat Hostiles 3 | . . . . . . 3 Parts Fried 6 | . 1 . 1 . . 4 Impact Corruptions 7 | . . . . . . 7 Robots Melted 1 | . . . . . . 1 Combat Hostiles 1 | . . . . . . 1 Parts Melted 7 | . . 2 . . . 5 Heat Transferred 3925 | . 111 1147 605 . 200 1862 Parts Sabotaged . | . . . . . . . Parts Stolen . | . . . . . . . Parts Stripped . | . . . . . . . Power Chain Reactions 6 | . 3 1 1 . . 1 Alert | -11 -10 -9 -8 -7 -7 -6 ------- Run | Yrd Mat Mat Mat Fac DSF Fac Peak Influence 600 | . 290 600 535 236 178 449 Initial 253 | . . 26 253 224 168 67 Average 219 | . 128 340 411 230 142 191 Maximum Alert Level 2 | . 1 2 2 1 . 2 Low Security (%) 52 | 100 80 27 . . 100 57 Level 1 31 | . 19 31 45 100 . 34 Level 2 15 | . . 41 54 . . 7 Level 3 . | . . . . . . . Level 4 . | . . . . . . . Level 5 . | . . . . . . . High Security . | . . . . . . . Max Security . | . . . . . . . Squads Dispatched 13 | . 1 . 2 1 2 7 Investigation 2 | . . . 1 1 . . Extermination 2 | . . . . . . 2 Reinforcement 8 | . 1 . . . 2 5 Assault . | . . . . . . . Garrison 1 | . . . 1 . . . Intercept . | . . . . . . . Searches Triggered . | . . . . . . . Construction Impeded 1 | . . . . . . 1 Haulers Reinforced . | . . . . . . . Active Scanning Responses . | . . . . . . . Cargo Convoy Interrupts . | . . . . . . . Stealth | -11 -10 -9 -8 -7 -7 -6 --------- Run | Yrd Mat Mat Mat Fac DSF Fac Distress Signals 6 | . 1 3 2 . . . Communications Jammed . | . . . . . . . Distress Signals . | . . . . . . . Times Spotted 116 | . 15 26 22 . 9 44 Peak Tracking Total 6 | . 3 5 4 . 4 6 Tactical Retreats 9 | . . 3 . . . 6 Traps | -11 -10 -9 -8 -7 -7 -6 ------- Run | Yrd Mat Mat Mat Fac DSF Fac Traps Triggered 5 | . 1 . 1 . 1 2 Indirectly . | . . . . . . . Trap Hack Attempts . | . . . . . . . Triggered . | . . . . . . . Disarmed . | . . . . . . . Reprogrammed . | . . . . . . . Reused . | . . . . . . . Traps Extracted . | . . . . . . . Installed . | . . . . . . . Triggered . | . . . . . . . Machines | -11 -10 -9 -8 -7 -7 -6 ---------- Run | Yrd Mat Mat Mat Fac DSF Fac Machines Disabled 22 | . 3 3 4 . . 12 Max in Single Turn 5 | . 2 1 1 . . 5 Garrison Access 2 | . . . 1 . . 1 Machines Repaired . | . . . . . . . Machines Dismantled . | . . . . . . . Machines Sabotaged . | . . . . . . . Overloaded Fab Kills . | . . . . . . . Hacking | -11 -10 -9 -8 -7 -7 -6 --------- Run | Yrd Mat Mat Mat Fac DSF Fac Machines Accessed 14 | . 3 3 2 2 . 4 Terminals 11 | . 3 3 1 2 . 2 Fabricators 1 | . . . . . . 1 Repair Stations . | . . . . . . . Recycling Units . | . . . . . . . Scanalyzers . | . . . . . . . Garrison Access 2 | . . . 1 . . 1 Total Hacks 30 | . 6 7 3 6 . 8 Successful 17 | . 4 4 2 3 . 4 Failed 13 | . 2 3 1 3 . 4 Catastrophic 1 | . . . . . . 1 Database Lockouts . | . . . . . . . Manual 2 | . 1 . 1 . . . Terminals 23 | . 6 7 1 6 . 3 Fabricators 3 | . . . . . . 3 Repair Stations . | . . . . . . . Recycling Units . | . . . . . . . Scanalyzers . | . . . . . . . Garrison Access 4 | . . . 2 . . 2 Terminal Hacks 13 | . 4 4 1 3 . 1 Record 3 | . . . . 2 . 1 Prototype ID Bank 1 | . 1 . . . . . Open DSF 1 | . . . . 1 . . Alert Level 1 | . 1 . . . . . Unreport Threat 1 | . 1 . . . . . Locate Traps 1 | . . 1 . . . . Investigation Status 1 | . . 1 . . . . Recall Investigation 2 | . . 1 1 . . . Hauler Manifests 2 | . 1 1 . . . . Fabricator Hacks 2 | . . . . . . 2 Network Status 1 | . . . . . . 1 Build 1 | . . . . . . 1 Repair Station Hacks . | . . . . . . . Recycling Unit Hacks . | . . . . . . . Scanalyzer . | . . . . . . . Garrison Access Hacks 2 | . . . 1 . . 1 Seal Access 2 | . . . 1 . . 1 Unauthorized Hacks . | . . . . . . . Terminals . | . . . . . . . Fabricators . | . . . . . . . Repair Stations . | . . . . . . . Recycling Units . | . . . . . . . Scanalyzers . | . . . . . . . Garrison Access . | . . . . . . . Data Cores Recovered 2 | . 1 1 . . . . Used . | . . . . . . . Hacking Detections 9 | . 2 3 1 1 . 2 Full Trace Events 1 | . . . . 1 . . Feedback Events . | . . . . . . . Feedback Blocked . | . . . . . . . Robot Schematics Acquired . | . . . . . . . Robots Built . | . . . . . . . Authchips . | . . . . . . . Time . | . . . . . . . Total Robot Build Rating . | . . . . . . . Part Schematics Acquired . | . . . . . . . Parts Built 2 | . . . . . . 2 Authchips . | . . . . . . . Time 117 | . . . . . . 117 Total Part Build Rating 14 | . . . . . . 14 Parts Repaired . | . . . . . . . Time . | . . . . . . . Parts Recycled . | . . . . . . . Recycled Matter . | . . . . . . . Retrieved Matter . | . . . . . . . Retrieved Components . | . . . . . . . Parts Scanalyzed . | . . . . . . . Part Schematics Acquired . | . . . . . . . Parts Damaged . | . . . . . . . Bothacking | -11 -10 -9 -8 -7 -7 -6 ------------ Run | Yrd Mat Mat Mat Fac DSF Fac Used RIF Installer . | . . . . . . . Robots Hacked . | . . . . . . . Non-combat . | . . . . . . . Combat . | . . . . . . . Robot Hacks Applied . | . . . . . . . Relay Couplers Released . | . . . . . . . Fabnet Peak Effective % . | . . . . . . . Robots Rewired . | . . . . . . . Allies Hacked . | . . . . . . . Hacks Repelled . | . . . . . . . Allies | -11 -10 -9 -8 -7 -7 -6 -------- Run | Yrd Mat Mat Mat Fac DSF Fac Total Allies . | . . . . . . . Largest Group . | . . . . . . . Highest-Rated Group . | . . . . . . . Highest-Rated Ally . | . . . . . . . Total Orders 6 | . . . . . . 6 ROAM 1 | . . . . . . 1 EXPLORE 4 | . . . . . . 4 RETURN 1 | . . . . . . 1 Ally Attacks . | . . . . . . . Total Damage . | . . . . . . . Kills . | . . . . . . . Allies Corrupted . | . . . . . . . Allies Melted . | . . . . . . . Intel | -11 -10 -9 -8 -7 -7 -6 ------- Run | Yrd Mat Mat Mat Fac DSF Fac Robot Analysis Total . | . . . . . . . Derelict Logs Recovered . | . . . . . . . Drone Launches 7 | . . . . . . 7 Drone Recoveries 7 | . . . . . . 7 Exploration | -11 -10 -9 -8 -7 -7 -6 ------------- Run | Yrd Mat Mat Mat Fac DSF Fac Turns Passed 4718 | 66 820 540 582 47 218 2445 Spaces Moved 2681 | 50 614 497 245 37 111 1127 Core 23 | 6 . . 2 . 7 8 Treads 32 | . . . 32 . . . Legs 1573 | 44 80 . 189 37 104 1119 Wheels . | . . . . . . . Hover 1053 | . 534 497 22 . . . Flight . | . . . . . . . Fastest Speed 50 | 50 56 52 112 120 120 120 Average Speed 138 | 111 112 68 173 120 133 178 Slowest Speed 800 | 120 180 180 300 120 400 800 Overloaded Moves . | . . . . . . . Propulsion Burnouts . | . . . . . . . Robots Hopped . | . . . . . . . Cave-ins Triggered . | . . . . . . . Exploration Rate (%) 34 | 4 71 44 28 1 70 25 Regions Visited 6 Branch Regions . Pre-discovered Areas . | . . . . . . . Known Exits Taken 1 | . . . . 1 . . Unknown Exits Taken 4 | 1 1 1 1 . . . Scrap Searched . | . . . . . . . Spaces Dug . | . . . . . . . Terrain Destroyed 236 | . 61 90 22 . . 63 Melee . | . . . . . . . Projectile 34 | . . . 1 . . 33 AOE 202 | . 61 90 21 . . 30 Terrain Rammed . | . . . . . . . Walls Destroyed . | . . . . . . . Machines Disabled . | . . . . . . . Actions | -11 -10 -9 -8 -7 -7 -6 --------- Run | Yrd Mat Mat Mat Fac DSF Fac Total 3252 | 57 699 598 327 39 148 1384 Wait 161 | . 40 7 1 . . 113 Move 2676 | 49 613 496 244 37 110 1127 Hop . | . . . . . . . Pick Up 37 | 2 5 11 7 . 2 10 Fast Attach 45 | 6 1 3 8 . 10 17 Attach 27 | . 2 7 3 2 3 10 Detach 3 | . 1 . 1 . . 1 Swap 50 | . 8 17 10 . 6 9 Drop 23 | . 1 8 7 . 2 5 Fire 177 | . 28 49 45 . 8 47 Melee 47 | . . . 1 . 7 39 Ram 1 | . . . . . . 1 Kick . | . . . . . . . Crush . | . . . . . . . Escape Stasis 5 | . . . . . . 5 Rewire . | . . . . . . . Trap . | . . . . . . . Miscellaneous . | . . . . . . . Route ------- -11/Scrapyard -10/Materials (discovered 2 exits: *Mat / [*Min]) -9/Materials -8/Materials -7/Factory -7/DSF -6/Factory History --------- Turn | Location | Event 11 | -11/Scrapyard | Discovered new exit (range 15) 67 | -11/Scrapyard | Entered Materials 317 | -10/Materials | Build established: Mutant 572 | -10/Materials | Discovered new exit (range 16) 643 | -10/Materials | Discovered new exit (range 13) 887 | -10/Materials | Entered another Materials area 887 | -9/Materials | Evolved 2 slots: Propulsion x1, Utility x1 1288 | -9/Materials | Lost 3 parts (2n1u) 1365 | -9/Materials | Discovered new exit (range 12) 1427 | -9/Materials | Entered another Materials area 1427 | -8/Materials | Evolved 2 slots: Utility x2 1592 | -8/Materials | Garrison activated, responded to threat 1668 | -8/Materials | Lost 6 parts (3n1u2w) 1935 | -8/Materials | Discovered new exit (range 14) 2009 | -8/Materials | Entered Factory 2009 | -7/Factory | Evolved 2 slots: Power x1, Weapon x1 2056 | -7/Factory | Identified exit to DSF 2056 | -7/Factory | Entered DSF 2111 | -7/DSF | Additional patrols routed to DSF 2168 | -7/DSF | Core integrity fell below 50% 2205 | -7/DSF | Lost 13 parts (2p4n2u5w) 2219 | -7/DSF | Discovered new exit (range 14) 2274 | -7/DSF | Entered Factory 2274 | -6/Factory | Evolved 2 slots: Utility x1, Weapon x1 2431 | -6/Factory | Fabricated Adv. Thermal Generator (x2) 2885 | -6/Factory | Build established: Gunner 3133 | -6/Factory | Lost 4 parts (1u3w) 3238 | -6/Factory | Lost 9 parts (2p3n3u1w) 3245 | -6/Factory | Core integrity fell below 50% 3558 | -6/Factory | Build established: Scavenger-Gunner 4574 | -6/Factory | Core integrity fell below 20% 4600 | -6/Factory | Lost 4 parts (1p1n2w) 4683 | -6/Factory | System corruption reached 10% 4719 | -6/Factory | Destroyed by H-66 Slayer with Gauss Rifle Last Messages --------------- 04688_ K-01 Serf collects debris. 04690_ Slug penetrates Assembly Bed. 04696_ K-01 Serf cleans the Assembly Bed. 04697_ System corrupted: Component data lost. 04697_ Penetrated by Slug. 04697_ Slug penetrates Assembly Bed. 04700_ Penetrated by Slug. 04700_ Phase Cannon destroyed. 04703_ Penetrated by Slug. 04706_ Acquired Imp. Shield Generator. 04708_ Slug penetrates Assembly Bed. 04710_ Acquired Imp. Shield Generator. 04710_ Knocked back. 04711_ Adv. Heat Sink destroyed. 04711_ Slug penetrates Assembly Bed. 04716_ System corrupted: Energy discharge (-11). 04716_ Slug penetrates Assembly Bed. 04716_ Assembly Bed disabled. 04717_ K-01 Serf collects debris. 04719_ Slug penetrates Assembly Bed. Map ----- +----------------------------------------------------+ | ?????????????????????????????????????????????????? | | ?????????????????????????????????????????????????? | | ?????????????????????????????????????????????????? | | ?????????????????????????????????????????????????? | | ?????????????????????????????????????????????????? | | ?????????????????????????????????????????????????? | | ?????????????????????????????????????????????????? | | ?????????????????????????????????????????????????? | | ?????????????????????????????????????????????????? | | ?????????????????????????????????????????????????? | | ?????????????????????????????????????????????????? | | ?????????????????????????????????????????????????? | | ?????????????????????????????????????????????????? | | ?????????????????????????????????????????????????? | | ?????????????????????????????????????????????????? | | ?????????????????????????????????????????????????? | | ?????????????????????????????????????????????????? | | ???????????????? ??????????????????????????????? | | ???????????????# ??????????????????????????????? | | ???????????????# ??????????????????????????????? | | ???????????????+ ??????????????????????????????? | | ???????????????# #?????????????????????????????? | | ???????????????# #?????????????????????????????? | | ???????????????# #?????????????????????????????? | | ???????????????# #############?????????????????? | | ???????????????# @ #?????????????????? | | ???????????????# R b #?????????????????? | | ??#########????# h u !!!#?????????????????? | | ? ! #????## """""" ! #?????????????????? | | # #?????# """""" ! #?????????????????? | | / #?????# b""""" #?????????????????? | | # % #?????# """"" s #?????????????????? | | #####+!########## h #?????????????????? | | ! % R k R #?????????????????? | | ##### ###########+###### #?????????????????? | | #####+####### ! #??# ????????????? | | # #??# ??????????? | | + "" "" #??# "" ?????????? | | ! # ""R"" #??# G"t ######??????????? | | # """" #??# "" #???????????????? | | !!! """" #########??## #???????????????? | | !! """" #???????????# ![[ #???????????????? | | !! """" #???????????# ![ #???????????????? | | """" #???????????# ![ ???????????????? | | """" #??" ???????# ????????????????? | | """" #???? "????# ????????????????? | | """" #????? ""???# ##?????????????????? | | ? #?????? ??# #??????????????????? | | #######+#############/### #??????????????????? | | ???# #??????????????????? | +----------------------------------------------------+ Best States ------------- Heat Dissipation 56 Energy Generation 31 Energy Capacity 370 Matter Stores 300 Matter Capacity 300 Sight Range 16 Robot Scan Range 14 Terrain Scan Density 10 Armor Coverage 150 Evasion (%) 63 Targeting Accuracy 6 Core Analysis 6 Armor Integrity Analysis 30 Recoil Reduction 3 Energy Filtering 30 Particle Charging 20 Offensive Hacking 10 Item Schematics ----------------- None Robot Schematics ------------------ None Fabricated ------------ Adv. Thermal Generator | x2 | -6/Factory | Preloaded Alien Tech Used ----------------- None Achievements -------------- Remodeling Challenges ------------ None Game ------ Seed BehemothShadingClaw Manual? 0 Play Time 01:05:02 Cumulative 11.6 hours Start 2024.12.07 @ 19:00:34 End 2024.12.07 @ 20:05:30 Sessions 1 Manual Loads 0 Difficulty Rogue Special Mode None Game No. 11 Rogue 8 Adventurer 3 Explorer 0 Win Type - Total 0 Types 0/0/0/0/0/0/0/0/0 Lore% 10 Gallery% 17 Achievement% 15 Wizard Run 0 Options --------- Layout 1 ASCII 0 Keyboard 0 Movement Mouse Keybinds 0 Fullscreen 2 Font 24/Smallcaps Map View 50x35 Zoom Use 0% Tactical HUD 1 Map Filters NONE Filters NONE Steam 1 RUN: 3949a665-fc5d-4b47-8634-1759342afe23